bitfinex-derivatives/quotes_BTCF0:USTF0_20220102
["timestamp","ask_amount","ask_price","bid_price","bid_amount"]
[1641161895540,0.74023238,47146.0,47144.0,3.36545068]
[1641161895741,0.74023238,47146.0,47144.0,3.18445068]
[1641161895943,0.74023238,47146.0,47145.0,0.18]
[1641161896343,0.74023238,47146.0,47145.0,0.38820752]
[1641161896743,0.74023238,47146.0,47145.0,0.367]
[1641161897042,0.14033567,47149.0,47145.0,0.38820779]
[1641161897245,0.14033567,47149.0,47148.0,0.18]
[1641161897445,1.32558824,47152.0,47148.0,0.18]
[1641161897649,1.32558824,47152.0,47151.0,0.18]
[1641161897847,1.32558824,47152.0,47151.0,0.24274]
[1641161898045,1.32558824,47152.0,47151.0,0.38573367]
[1641161898447,1.20838824,47155.0,47151.0,0.57473367]
[1641161898746,1.56721888,47166.0,47154.0,0.62533801]
[1641161899047,1.56721888,47166.0,47158.0,0.18]
[1641161899245,1.56721888,47166.0,47158.0,0.06]
[1641161899446,0.14033567,47170.0,47163.0,0.18]
[1641161899645,0.14033567,47170.0,47163.0,0.08077]
[1641161900350,0.14033567,47170.0,47163.0,0.24477]
[1641161901645,0.14033567,47170.0,47163.0,0.08077]
[1641161902445,0.14033567,47170.0,47163.0,0.24477]
[1641161903651,0.14033567,47170.0,47163.0,0.08077]
[1641161904050,1.58595272,47170.0,47163.0,0.08077]
[1641161904252,0.09039022,47169.0,47163.0,0.08077]
[1641161904452,0.09039022,47169.0,47163.0,0.23777]
[1641161905654,1.32513819,47166.0,47163.0,0.23777]
[1641161905851,1.32513819,47166.0,47163.0,0.08077]
[1641161906052,1.32513819,47166.0,47162.0,0.35567048]
[1641161906452,1.48513819,47166.0,47163.0,0.182]
[1641161906651,1.48513819,47166.0,47163.0,0.27273]
[1641161907654,0.09039022,47165.0,47163.0,0.62840048]
[1641161907956,0.09039022,47165.0,47163.0,0.44640048]
[1641161908353,0.26239022,47165.0,47163.0,0.62840048]
[1641161909555,0.09039022,47164.0,47163.0,0.62840048]
[1641161909857,0.09039022,47164.0,47163.0,0.44640048]
[1641161910563,0.26839022,47164.0,47163.0,0.62940048]
[1641161910954,0.26839022,47164.0,47163.0,0.27373]
[1641161911155,1.59352841,47164.0,47163.0,0.27373]
[1641161911355,1.59352841,47164.0,47163.0,0.86651413]
[1641161911754,1.41552841,47164.0,47163.0,0.68351413]
[1641161912454,1.59452841,47164.0,47163.0,0.86651413]
[1641161912856,1.50413819,47164.0,47163.0,0.86651413]
[1641161913357,1.59452841,47164.0,47163.0,0.86651413]
[1641161913957,1.59452841,47164.0,47163.0,1.10366439]
[1641161913958,0.26939022,47164.0,47163.0,1.10366439]
[1641161914555,0.45139022,47164.0,47163.0,1.28866439]
[1641161915357,0.45139022,47164.0,47163.0,0.45873]
[1641161915758,0.09039022,47164.0,47163.0,0.09073]
[1641161915958,0.09039022,47164.0,47163.0,0.05677]
[1641161916560,0.125,47164.0,47163.0,0.24277]
[1641161917862,0.36055615,47172.0,47163.0,0.05677]
[1641161918661,0.33333567,47170.0,47163.0,0.05677]
[1641161919063,0.33333567,47170.0,47165.0,0.18]
[1641161919464,0.33333567,47170.0,47169.0,0.18]
[1641161919863,0.14033567,47170.0,47169.0,0.18]
[1641161920061,0.36055615,47173.0,47169.0,0.18]
[1641161920262,0.36055615,47173.0,47168.0,0.02119826]
[1641161920461,0.36055615,47173.0,47169.0,0.186]
[1641161920462,0.168,47170.0,47169.0,0.186]
[1641161921262,0.168,47170.0,47169.0,0.366]
[1641161921462,0.168,47170.0,47169.0,0.186]
[1641161921663,0.168,47170.0,47169.0,0.366]
[1641161921863,0.14033567,47175.0,47168.0,0.02119826]
[1641161922064,0.14033567,47175.0,47169.0,0.18]
[1641161922263,0.50089182,47180.0,47169.0,0.18]
[1641161922565,0.183,47175.0,47169.0,0.18]
[1641161922965,0.183,47175.0,47168.0,2.97864041]
[1641161923168,0.183,47175.0,47168.0,3.15864041]
[1641161923364,0.183,47175.0,47168.0,2.97864041]
[1641161923765,0.183,47175.0,47168.0,2.79764041]
[1641161923967,0.50089182,47180.0,47168.0,2.97764041]
[1641161924167,0.50089182,47180.0,47172.0,0.14033567]
[1641161924368,0.36055615,47179.0,47172.0,0.14033567]
[1641161925167,0.68289182,47180.0,47172.0,0.14033567]
[1641161926266,0.50089182,47180.0,47172.0,0.14033567]
[1641161926467,0.68489182,47180.0,47172.0,0.29933567]
[1641161928471,0.68789182,47180.0,47172.0,0.29633567]
[1641161929776,0.17996914,47178.0,47172.0,0.29633567]
[1641161929976,0.68789182,47180.0,47172.0,0.29633567]
[1641161930475,0.68789182,47180.0,47172.0,0.29333567]
[1641161931478,0.36055615,47179.0,47172.0,0.29333567]
[1641161931878,0.36055615,47179.0,47172.0,0.14033567]
[1641161932579,0.54655615,47179.0,47172.0,0.30133567]
[1641161933279,0.72652529,47179.0,47172.0,0.30133567]
[1641161933681,0.36596914,47179.0,47172.0,0.30133567]
[1641161933881,1.44561705,47176.0,47173.0,0.35453471]
[1641161934580,1.63061705,47176.0,47173.0,0.53053471]
[1641161934782,0.185,47176.0,47173.0,0.53053471]
[1641161935382,0.09036898,47175.0,47173.0,0.53053471]
[1641161935583,0.09036898,47175.0,47174.0,0.35453471]
[1641161936483,0.26436898,47175.0,47174.0,0.53353471]
[1641161936884,0.174,47175.0,47174.0,0.53353471]
[1641161937884,1.44561705,47177.0,47174.0,0.35453471]
[1641161938087,0.09036898,47175.0,47173.0,0.35453471]
[1641161938488,0.09036898,47175.0,47174.0,0.172]
[1641161939090,0.185,47177.0,47174.0,0.172]
[1641161939893,0.09036898,47176.0,47172.0,0.14033567]
[1641161940793,0.27536898,47176.0,47172.0,0.31633567]
[1641161940992,0.84262075,47173.0,47172.0,0.31633567]
[1641161942093,0.84262075,47173.0,47172.0,0.14033567]
[1641161942491,1.02162075,47173.0,47172.0,0.32333567]
[1641161943902,0.84262075,47173.0,47172.0,0.14033567]
[1641161944500,1.02162075,47173.0,47172.0,0.32333567]
[1641161945900,0.84262075,47173.0,47172.0,0.14033567]
[1641161946603,1.02162075,47173.0,47172.0,0.32333567]
[1641161946803,0.179,47173.0,47172.0,0.32333567]
[1641161947604,1.02164328,47173.0,47172.0,0.32333567]
[1641161948507,0.176,47173.0,47172.0,0.32133567]
[1641161949608,0.26636898,47173.0,47172.0,0.32133567]
[1641161950010,0.26636898,47173.0,47172.0,0.14033567]
[1641161950011,0.09036898,47173.0,47172.0,0.14033567]
[1641161950608,0.09036898,47173.0,47172.0,0.32133567]
[1641161950609,0.26636898,47173.0,47172.0,0.32133567]
[1641161951010,0.176,47173.0,47172.0,0.32133567]
[1641161951810,0.09036898,47176.0,47172.0,0.14033567]
[1641161952018,0.09036898,47173.0,47172.0,0.14033567]
[1641161952611,0.26636898,47173.0,47172.0,0.32133567]
[1641161952912,0.176,47173.0,47172.0,0.32133567]
[1641161953817,0.26636898,47173.0,47172.0,0.14033567]
[1641161954013,0.09036898,47173.0,47172.0,0.14033567]
[1641161954616,0.27136898,47173.0,47172.0,0.32133567]
[1641161955215,0.181,47173.0,47172.0,0.32133567]
[1641161955815,1.11401396,47173.0,47172.0,0.32133567]
[1641161956615,1.11601396,47173.0,47172.0,0.32233567]
[1641161957219,0.27336898,47173.0,47172.0,0.32233567]
[1641161957818,0.27033812,47173.0,47168.0,0.35453471]
[1641161958021,0.17996914,47172.0,47168.0,0.35453471]
[1641161958217,0.17996914,47171.0,47168.0,0.35453471]
[1641161958619,0.17996914,47171.0,47168.0,0.50953471]
[1641161959220,0.09036898,47170.0,47168.0,0.155]
[1641161960122,0.09036898,47170.0,47163.0,0.35453471]
[1641161960321,0.17996914,47167.0,47163.0,0.35453471]
[1641161960721,0.17996914,47167.0,47163.0,0.52553471]
[1641161960923,0.17996914,47167.0,47163.0,0.171]
[1641161960924,0.36118514,47164.0,47163.0,0.171]
[1641161961529,0.60197523,47165.0,47163.0,0.171]
[1641161961724,0.09036898,47166.0,47163.0,0.171]
[1641161962526,0.09036898,47166.0,47162.0,1.18639222]
[1641161962728,0.26836898,47166.0,47165.0,0.82876897]
[1641161963630,1.59256469,47166.0,47165.0,0.59215846]
[1641161963927,1.41456469,47166.0,47165.0,0.59215846]
[1641161964130,1.59453383,47166.0,47164.0,0.82876897]
[1641161964328,0.27033812,47166.0,47164.0,0.82876897]
[1641161964626,0.009794,47165.0,47164.0,0.99376897]
[1641161965427,0.10016298,47165.0,47164.0,0.99376897]
[1641161965628,0.10016298,47165.0,47164.0,0.165]
[1641161966028,0.10016298,47165.0,47163.0,0.59249547]
[1641161966430,0.10016298,47165.0,47162.0,0.59249547]
[1641161966632,0.28316298,47165.0,47163.0,0.146]
[1641161966828,0.17996914,47164.0,47163.0,0.146]
[1641161967229,0.27033812,47164.0,47163.0,0.146]
[1641161967930,0.27033812,47164.0,47161.0,0.59249547]
[1641161968630,0.45533812,47164.0,47161.0,0.73749547]
[1641161968932,0.09036898,47163.0,47161.0,0.73749547]
[1641161969732,0.36496914,47164.0,47161.0,0.73749547]
[1641161969936,0.17996914,47164.0,47161.0,0.59249547]
[1641161970534,0.09036898,47163.0,47160.0,0.73283114]
[1641161970732,0.09036898,47163.0,47161.0,0.156]
[1641161971136,0.11157744,47163.0,47161.0,0.74849547]
[1641161971533,0.009794,47162.0,47161.0,0.74849547]
[1641161971933,0.009794,47162.0,47161.0,0.59249547]
[1641161972134,1.29116296,47162.0,47157.0,1.18639222]
[1641161972337,0.18096914,47158.0,47157.0,1.18639222]
[1641161972537,0.18096914,47158.0,47157.0,0.83063225]
[1641161973038,0.17996914,47158.0,47157.0,0.83063225]
[1641161974039,0.18096914,47158.0,47152.0,1.30383992]
[1641161974245,0.27033812,47158.0,47149.0,1.44417559]
[1641161974641,0.42033812,47158.0,47152.0,0.16]
[1641161975141,0.09036898,47157.0,47152.0,0.16]
[1641161975841,0.17996914,47155.0,47152.0,0.16]
[1641161976045,0.001,47153.0,47149.0,1.44417559]
[1641161976241,0.18976314,47155.0,47149.0,1.44417559]
[1641161976642,0.179,47153.0,47149.0,1.62817559]
[1641161977543,0.09036898,47152.0,47149.0,0.32433567]
[1641161977751,0.08906898,47152.0,47149.0,0.32433567]
[1641161977952,0.08906898,47152.0,47149.0,0.14033567]
[1641161978152,0.26903812,47152.0,47149.0,0.14033567]
[1641161978353,0.26903812,47152.0,47148.0,1.30383992]
[1641161978354,0.08498537,47151.0,47148.0,1.30383992]
[1641161978556,0.08498537,47151.0,47149.0,0.173]
[1641161980155,0.08498537,47151.0,47145.0,0.14033567]
[1641161980559,0.08498537,47151.0,47149.0,0.83566577]
[1641161980755,0.26298537,47151.0,47149.0,0.83566577]
[1641161981255,0.085991,47150.0,47149.0,0.83566577]
[1641161981660,0.10720628,47150.0,47145.0,0.31233567]
[1641161982057,0.085991,47150.0,47145.0,0.31233567]
[1641161982256,0.17996914,47149.0,47145.0,0.14033567]
[1641161982458,0.085991,47150.0,47145.0,0.14033567]
[1641161982658,0.02121544,47148.0,47145.0,0.30433567]
[1641161983258,0.17996914,47149.0,47145.0,0.30433567]
[1641161983661,1.32191155,47149.0,47147.0,0.83566577]
[1641161984661,1.51291155,47149.0,47147.0,0.92507577]
[1641161985959,1.32191155,47149.0,47147.0,0.92507577]
[1641161986458,1.32191155,47149.0,47147.0,0.08941]
[1641161986661,0.182,47149.0,47147.0,1.45821824]
[1641161987063,0.36196914,47149.0,47147.0,1.45821824]
[1641161987260,0.02121548,47148.0,47147.0,1.45821824]
[1641161987460,0.02121548,47148.0,47147.0,0.26441]
[1641161988061,0.02121548,47148.0,47147.0,0.08941]
[1641161988263,1.34312703,47148.0,47147.0,0.5984111]
[1641161988760,1.51212703,47148.0,47147.0,0.7744111]
[1641161990163,1.34312703,47148.0,47147.0,0.5984111]
[1641161990362,1.34312703,47148.0,47145.0,0.14033567]
[1641161990765,1.51312703,47148.0,47147.0,0.177]
[1641161991167,0.19121548,47148.0,47147.0,0.177]
[1641161992072,0.19121548,47148.0,47145.0,1.33414391]
[1641161992267,1.32191155,47149.0,47145.0,1.33414391]
[1641161992673,1.49191155,47148.0,47145.0,0.31733567]
[1641161993469,0.09041703,47147.0,47145.0,1.51114391]
[1641161994068,0.09041703,47147.0,47145.0,1.33414391]
[1641161994270,0.09041703,47147.0,47146.0,1.19380824]
[1641161994672,0.25641703,47147.0,47146.0,1.19380824]
[1641161995072,0.166,47147.0,47146.0,1.19380824]
[1641161995870,0.25641703,47147.0,47146.0,1.19380824]
[1641161996071,0.09041703,47147.0,47146.0,1.19380824]
[1641161996672,0.27041703,47147.0,47146.0,1.37780824]
[1641161997275,0.18,47147.0,47146.0,1.37780824]
[1641161997873,0.27041703,47147.0,47146.0,1.37780824]
[1641161998074,0.09041703,47147.0,47146.0,1.19380824]
[1641161998675,0.25741703,47147.0,47146.0,1.37980824]
[1641162000077,0.09041703,47147.0,47146.0,1.19380824]
[1641162000677,0.24941703,47147.0,47146.0,0.186]
[1641162001978,0.09041703,47147.0,47145.0,0.14033567]
[1641162002780,0.164,47147.0,47145.0,0.32533567]
[1641162003280,0.09041703,47146.0,47145.0,0.32533567]
[1641162003980,0.09041703,47146.0,47145.0,0.14033567]
[1641162004781,0.25241703,47146.0,47145.0,0.32633567]
[1641162004985,0.162,47146.0,47145.0,0.32633567]
[1641162005782,0.25241703,47146.0,47145.0,0.32633567]
[1641162005982,0.09041703,47146.0,47145.0,0.14033567]
[1641162006784,0.09041703,47146.0,47145.0,0.32733567]
[1641162007588,0.09041703,47149.0,47145.0,0.32733567]
[1641162008085,0.09041703,47149.0,47145.0,0.14033567]
[1641162008285,1.41232858,47151.0,47148.0,0.83550977]
[1641162008685,0.185,47149.0,47148.0,0.83550977]
[1641162009892,0.27541703,47149.0,47148.0,0.83550977]
[1641162010091,0.09041703,47149.0,47148.0,0.83550977]
[1641162010786,0.26841703,47149.0,47148.0,1.00750977]
[1641162011388,0.178,47149.0,47148.0,1.00750977]
[1641162012091,0.09041703,47149.0,47148.0,0.83550977]
[1641162012695,0.26441703,47149.0,47148.0,0.174]
[1641162013891,0.26441703,47149.0,47148.0,1.00950977]
[1641162014592,0.26441703,47149.0,47148.0,0.174]
[1641162014793,0.44341703,47149.0,47148.0,0.347]
[1641162016194,0.09041703,47149.0,47147.0,0.83550977]
[1641162016696,0.09041703,47149.0,47147.0,1.00850977]
[1641162016896,0.26741703,47149.0,47147.0,1.00850977]
[1641162017097,0.177,47149.0,47147.0,1.00850977]
[1641162017902,0.09041703,47148.0,47147.0,1.00850977]
[1641162018099,1.41232858,47148.0,47147.0,0.173]
[1641162018299,1.41232858,47148.0,47145.0,0.97584544]
[1641162018697,1.60432858,47148.0,47145.0,0.97584544]
[1641162019398,1.51391155,47148.0,47145.0,0.97584544]
[1641162019999,1.32191155,47148.0,47145.0,0.97584544]
[1641162020603,0.09041703,47147.0,47145.0,0.97584544]
[1641162020801,0.09041703,47147.0,47145.0,1.14984544]
[1641162021404,1.48391155,47148.0,47145.0,1.14984544]
[1641162022102,1.32191155,47148.0,47145.0,0.97584544]
[1641162022306,0.09041703,47146.0,47145.0,0.14033567]
[1641162022706,0.19741703,47146.0,47145.0,0.32633567]
[1641162023105,0.107,47146.0,47145.0,0.32633567]
[1641162024008,0.19741703,47146.0,47145.0,0.32633567]
[1641162024206,0.09041703,47146.0,47145.0,0.14033567]
[1641162024805,0.21441703,47146.0,47145.0,0.32333567]
[1641162025010,0.21441703,47146.0,47145.0,0.183]
[1641162025515,0.124,47146.0,47145.0,0.183]
[1641162026011,0.21441703,47146.0,47145.0,0.183]
[1641162026211,0.21441703,47146.0,47143.0,1.19393436]
[1641162026212,0.09041703,47146.0,47143.0,1.19393436]
[1641162026826,0.21341703,47146.0,47143.0,1.37693436]
[1641162027029,0.14033567,47145.0,47143.0,1.37693436]
[1641162027230,0.14033567,47145.0,47143.0,0.183]
[1641162028031,0.09041703,47144.0,47143.0,1.37693436]
[1641162028226,0.09041703,47144.0,47143.0,1.19393436]
[1641162028728,0.09041703,47144.0,47143.0,1.38393436]
[1641162030127,0.09041703,47144.0,47143.0,1.19393436]
[1641162030331,0.09041703,47144.0,47140.0,1.48383992]
[1641162030537,0.09041703,47144.0,47140.0,1.30383992]
[1641162030727,0.09041703,47144.0,47140.0,1.67483992]
[1641162030928,0.09041703,47144.0,47140.0,1.49483992]
[1641162031130,0.84391673,47143.0,47141.0,1.30383992]
[1641162032431,0.84391673,47142.0,47140.0,1.48383992]
[1641162032831,0.84391673,47143.0,47141.0,1.49483992]
[1641162033535,0.84391673,47142.0,47141.0,0.191]
[1641162034136,0.84391673,47143.0,47140.0,1.30383992]
[1641162034334,0.84391673,47143.0,47140.0,1.48383992]
[1641162034734,0.84391673,47143.0,47140.0,1.49483992]
[1641162035137,0.36158437,47141.0,47140.0,0.191]
[1641162036244,0.84391673,47143.0,47138.0,1.38765992]
[1641162036738,0.90291673,47143.0,47138.0,1.57865992]
[1641162037242,0.3615888,47140.0,47139.0,0.01205362]
[1641162038741,0.3615888,47140.0,47139.0,0.19205362]
[1641162038942,0.3615888,47140.0,47139.0,1.68789354]
[1641162040441,0.3615888,47140.0,47139.0,1.43589354]
[1641162040643,0.3615888,47140.0,47139.0,1.49589354]
[1641162040855,0.3615888,47140.0,47139.0,1.68789354]
[1641162042143,0.3615888,47140.0,47139.0,1.49589354]
[1641162042346,0.3615888,47141.0,47139.0,1.51710506]
[1641162042544,0.3615888,47141.0,47140.0,0.18]
[1641162042744,0.3615888,47141.0,47140.0,0.19205362]
[1641162043146,0.3615888,47142.0,47140.0,1.49589354]
[1641162043350,0.3615888,47142.0,47141.0,0.18]
[1641162044845,0.3615888,47142.0,47141.0,0.38305318]
[1641162045344,0.3615888,47142.0,47141.0,0.371]
[1641162046048,0.3615888,47142.0,47141.0,0.18]
[1641162046847,0.3615888,47142.0,47141.0,0.192]
[1641162047046,0.3615888,47142.0,47141.0,0.372]
[1641162048149,0.3615888,47142.0,47141.0,0.19205313]
[1641162048852,0.3615888,47142.0,47141.0,0.38305313]
[1641162050251,0.3615888,47142.0,47141.0,0.18]
[1641162050852,0.3615888,47142.0,47141.0,0.371]
[1641162051156,0.60262395,47143.0,47141.0,0.371]
[1641162052353,1.53695672,47143.0,47141.0,1.48383992]
[1641162052554,0.60262395,47142.0,47141.0,1.48383992]
[1641162052854,0.60262395,47142.0,47141.0,1.67483992]
[1641162054159,0.60262395,47142.0,47141.0,1.48383992]
[1641162054957,0.60262395,47142.0,47141.0,1.67483992]
[1641162055157,0.60262395,47142.0,47141.0,1.68689308]
[1641162055358,0.60262395,47142.0,47141.0,1.67483992]
[1641162055661,0.84391673,47143.0,47141.0,1.67483992]
[1641162056360,0.84391673,47143.0,47141.0,1.48383992]
[1641162056562,0.60278101,47142.0,47141.0,1.48383992]
[1641162056961,0.60278101,47142.0,47141.0,1.67483992]
[1641162058261,0.60278101,47142.0,47141.0,1.48383992]
[1641162058461,0.60278101,47142.0,47141.0,1.30383992]
[1641162058664,0.60278101,47142.0,47141.0,1.36383992]
[1641162058862,0.62978101,47142.0,47141.0,1.67583992]
[1641162059762,0.62978101,47142.0,47141.0,1.68789305]
[1641162060176,0.60278101,47142.0,47141.0,1.49589305]
[1641162060864,0.77178101,47142.0,47141.0,1.68389305]
[1641162062175,0.84391673,47143.0,47141.0,1.48383992]
[1641162062371,0.0904173,47142.0,47141.0,1.48383992]
[1641162062771,0.93433403,47143.0,47141.0,1.48383992]
[1641162062972,0.167,47142.0,47141.0,1.67183992]
[1641162063773,0.76975152,47142.0,47141.0,1.67183992]
[1641162064173,0.76975152,47142.0,47141.0,1.48383992]
[1641162064372,0.60275152,47142.0,47141.0,1.48383992]
[1641162064777,0.84391673,47143.0,47141.0,1.48383992]
[1641162064974,0.0904173,47142.0,47141.0,0.38305291]
[1641162065174,0.0904173,47142.0,47141.0,0.371]
[1641162065776,0.93433403,47144.0,47141.0,0.371]
[1641162065974,0.60273863,47143.0,47141.0,0.371]
[1641162066374,0.60273863,47143.0,47141.0,0.18]
[1641162066975,0.60273863,47143.0,47141.0,0.372]
[1641162067177,0.36163841,47142.0,47141.0,0.372]
[1641162067782,0.36163841,47143.0,47141.0,0.372]
[1641162068183,0.36163841,47143.0,47141.0,0.18]
[1641162068885,0.36163841,47143.0,47141.0,0.372]
[1641162070387,0.36163841,47144.0,47141.0,0.18]
[1641162070887,0.36163841,47144.0,47141.0,0.369]
[1641162071085,0.36163841,47144.0,47141.0,1.79174466]
[1641162071986,0.36163841,47144.0,47141.0,0.369]
[1641162072188,0.36163841,47143.0,47141.0,0.18]
[1641162072793,0.36163841,47144.0,47141.0,1.60274466]
[1641162072988,0.36163841,47144.0,47141.0,1.79274466]
[1641162074393,0.36163841,47144.0,47141.0,0.18]
[1641162074891,0.36163841,47144.0,47140.0,1.42274466]
[1641162075094,0.36163841,47143.0,47141.0,0.188]
[1641162076195,0.36163841,47143.0,47140.0,1.42274466]
[1641162076595,0.36163841,47143.0,47140.0,1.60274466]
[1641162076995,0.36163841,47143.0,47140.0,0.368]
[1641162078498,0.36163841,47143.0,47140.0,0.18]
[1641162078698,0.36163841,47143.0,47140.0,1.60274466]
[1641162078997,0.53463841,47143.0,47140.0,1.78974466]
[1641162080398,0.36163841,47142.0,47141.0,0.01205268]
[1641162081103,0.53263841,47142.0,47141.0,0.20005268]
[1641162082001,0.171,47142.0,47141.0,0.20005268]
[1641162082302,0.36163841,47143.0,47141.0,0.01205268]
[1641162083001,0.53263841,47143.0,47141.0,0.19905268]
[1641162083401,0.53263841,47143.0,47142.0,0.01205268]
[1641162084401,0.36163841,47143.0,47142.0,0.01205268]
[1641162084601,0.36163841,47143.0,47141.0,0.01205268]
[1641162084802,0.36163841,47143.0,47142.0,0.01205268]
[1641162085003,0.53363841,47143.0,47142.0,0.20005268]
[1641162085402,0.53363841,47143.0,47142.0,0.188]
[1641162085602,0.53363841,47143.0,47142.0,0.20005268]
[1641162085806,0.53363841,47143.0,47142.0,0.188]
[1641162086002,0.172,47143.0,47142.0,0.20005299]
[1641162086204,0.77473863,47143.0,47142.0,1.51546236]
[1641162086405,0.60273863,47143.0,47142.0,1.31540937]
[1641162087003,0.77173863,47143.0,47142.0,1.50240937]
[1641162088409,0.169,47143.0,47142.0,1.50240937]
[1641162088607,0.09041699,47143.0,47142.0,1.31540937]
[1641162089006,0.25041699,47143.0,47142.0,1.50040937]
[1641162089607,1.00391673,47143.0,47142.0,0.185]
[1641162090206,1.09433372,47143.0,47142.0,0.185]
[1641162090406,1.11430286,47143.0,47141.0,1.31540937]
[1641162090607,1.11430286,47143.0,47129.0,0.16155139]
[1641162090608,1.12409686,47143.0,47129.0,0.16155139]
[1641162090807,0.17996914,47141.0,47129.0,0.16155139]
[1641162091012,0.17996914,47136.0,47129.0,0.14033567]
[1641162091206,0.23798914,47136.0,47129.0,0.14033567]
[1641162091407,0.24778314,47136.0,47129.0,0.14033567]
[1641162091809,0.24778314,47136.0,47129.0,1.69024858]
[1641162092008,0.17996914,47133.0,47129.0,1.69024858]
[1641162093010,0.36896914,47133.0,47129.0,0.57061291]
[1641162093210,1.29396914,47130.0,47120.0,0.99807514]
[1641162093410,0.17996914,47125.0,47120.0,0.99807514]
[1641162093714,0.24366914,47125.0,47120.0,0.68684683]
[1641162093910,0.17996914,47124.0,47122.0,0.01205781]
[1641162095008,0.35396914,47124.0,47122.0,0.179]
[1641162095212,1.10852915,47124.0,47122.0,0.179]
[1641162095412,1.28849829,47124.0,47122.0,0.179]
[1641162096112,1.11449829,47123.0,47122.0,0.179]
[1641162096313,1.11449829,47123.0,47120.0,0.14033567]
[1641162096912,0.93452915,47123.0,47120.0,0.14033567]
[1641162097111,0.98711216,47123.0,47121.0,0.204]
[1641162097412,0.143,47123.0,47121.0,0.204]
[1641162098611,0.17996914,47122.0,47121.0,0.204]
[1641162099012,0.30596914,47122.0,47121.0,0.207]
[1641162100414,0.17996914,47122.0,47121.0,0.02]
[1641162101013,0.30696914,47122.0,47121.0,0.207]
[1641162101214,0.127,47122.0,47121.0,0.207]
[1641162101817,0.127,47122.0,47121.0,0.21905782]
[1641162102516,0.127,47122.0,47121.0,0.240276]
[1641162102715,0.127,47122.0,47121.0,0.21905782]
[1641162103014,0.127,47122.0,47121.0,0.41405782]
[1641162103216,0.127,47122.0,47121.0,0.59405782]
[1641162103414,0.127,47122.0,47121.0,0.22805782]
[1641162103615,0.14033567,47128.0,47121.0,0.03305782]
[1641162103821,0.14033567,47128.0,47121.0,0.09563782]
[1641162104317,0.14033567,47128.0,47122.0,0.01205782]
[1641162104717,0.14033567,47128.0,47124.0,0.02121818]
[1641162105818,0.14033567,47128.0,47123.0,2.89531881]
[1641162106019,0.14033567,47128.0,47125.0,0.01205672]
[1641162106419,0.14033567,47128.0,47124.0,0.01205672]
[1641162106722,0.009794,47134.0,47126.0,0.01205672]
[1641162106918,0.009794,47134.0,47125.0,0.01205672]
[1641162107518,0.009794,47134.0,47124.0,0.2232749]
[1641162107820,0.009794,47134.0,47126.0,0.01205672]
[1641162108118,0.009794,47134.0,47125.0,0.15239239]
[1641162108321,0.009794,47134.0,47133.0,0.35953173]
[1641162108521,0.009794,47134.0,47133.0,0.44668173]
[1641162109019,0.195794,47134.0,47133.0,0.58068173]
[1641162110021,0.195794,47134.0,47133.0,0.22115]
[1641162110420,0.009794,47134.0,47133.0,0.08715]
[1641162111124,0.194794,47134.0,47133.0,0.25515]
[1641162111523,0.194794,47134.0,47133.0,0.61585296]
[1641162112325,0.009794,47134.0,47133.0,0.44785296]
[1641162113124,0.193794,47134.0,47133.0,0.61685296]
[1641162113326,0.184,47134.0,47133.0,0.25615]
[1641162113527,0.184,47134.0,47133.0,0.85536956]
[1641162114127,0.184,47134.0,47133.0,0.25615]
[1641162114332,0.32030481,47138.0,47133.0,0.08715]
[1641162114530,0.32030481,47138.0,47132.0,1.19843912]
[1641162115129,0.50230481,47138.0,47132.0,1.19843912]
[1641162115329,1.94957261,47138.0,47136.0,0.36074199]
[1641162115529,1.94957261,47138.0,47136.0,0.44755199]
[1641162115728,1.76960347,47138.0,47136.0,0.44755199]
[1641162116230,1.94957261,47138.0,47136.0,0.44755199]
[1641162116441,1.76757261,47138.0,47136.0,0.44755199]
[1641162117041,1.95257261,47138.0,47136.0,0.44755199]
[1641162118441,1.76757261,47138.0,47136.0,0.44755199]
[1641162119042,0.17996914,47137.0,47136.0,0.44755199]
[1641162119846,0.17996914,47137.0,47136.0,0.08681]
[1641162120045,0.17996914,47137.0,47134.0,0.36074199]
[1641162120246,0.02122092,47136.0,47134.0,0.36074199]
[1641162120844,0.21016901,47136.0,47134.0,0.36074199]
[1641162121044,0.38516901,47136.0,47134.0,0.47974199]
[1641162121648,1.44716617,47135.0,47134.0,0.119]
[1641162122447,1.44716617,47135.0,47133.0,0.36074199]
[1641162122648,0.17996914,47134.0,47133.0,0.36074199]
[1641162124452,0.270417,47134.0,47133.0,0.17680293]
[1641162124656,0.270417,47134.0,47131.0,0.60123664]
[1641162124852,1.384417,47134.0,47131.0,0.60123664]
[1641162125055,0.463417,47134.0,47131.0,0.60123664]
[1641162125654,0.463417,47134.0,47128.0,1.19843912]
[1641162125855,0.463417,47134.0,47127.0,0.60123664]
[1641162126458,0.270417,47134.0,47127.0,0.60123664]
[1641162126756,1.32610501,47131.0,47127.0,0.60123664]
[1641162127557,0.09044786,47133.0,47127.0,0.60123664]
[1641162127558,1.32610501,47132.0,47127.0,0.60123664]
[1641162127757,1.32610501,47132.0,47127.0,0.67798664]
[1641162128561,1.50607415,47132.0,47127.0,0.67798664]
[1641162128760,0.17996914,47132.0,47129.0,0.8417313]
[1641162129060,0.18,47132.0,47130.0,0.60123664]
[1641162129763,0.09044786,47131.0,47129.0,0.60123664]
[1641162130360,0.09044786,47131.0,47130.0,0.60123664]
[1641162131058,0.09044786,47131.0,47130.0,0.78823664]
[1641162131861,1.32610501,47134.0,47130.0,0.78823664]
[1641162132463,1.41655287,47135.0,47130.0,0.60123664]
[1641162133062,1.59955287,47135.0,47130.0,0.65323664]
[1641162133664,1.77952201,47135.0,47130.0,0.65323664]
[1641162133864,0.09044786,47133.0,47130.0,0.65323664]
[1641162134464,0.09044786,47134.0,47130.0,1.44296794]
[1641162134664,0.09044786,47134.0,47131.0,0.60123664]
[1641162135064,0.26644786,47134.0,47131.0,0.77623664]
[1641162135468,0.176,47134.0,47133.0,0.36055142]
[1641162136068,0.35596914,47134.0,47133.0,0.36055142]
[1641162136279,0.446417,47134.0,47133.0,0.36055142]
[1641162136471,0.270417,47134.0,47133.0,0.36055142]
[1641162136677,0.09044786,47134.0,47133.0,0.36055142]
[1641162137076,0.27644786,47134.0,47133.0,0.47855142]
[1641162137278,1.60255287,47134.0,47133.0,0.118]
[1641162137980,0.27644786,47134.0,47133.0,0.118]
[1641162138378,0.09044786,47134.0,47132.0,0.36055142]
[1641162139078,0.26944786,47134.0,47132.0,0.51655142]
[1641162139680,0.09044786,47133.0,47132.0,0.156]
[1641162141084,0.27144786,47133.0,47132.0,0.178]
[1641162142387,0.09044786,47133.0,47131.0,0.60123664]
[1641162142589,0.09044786,47133.0,47132.0,0.60123664]